[Event "Late-Titled-Tuesday-Blitz-June-25-2024"]
[Site "Chess.com"]
[Date "2024.06.25"]
[Round "3"]
[White "GMChessrob"]
[Black "Heliosis11"]
[Result "1-0"]
[WhiteElo "2638"]
[BlackElo "2438"]
[TimeControl "180+1"]
[EndTime "14:27:14 PDT"]
[Termination "GMChessrob won by resignation"]

1. d4 {[%clk 0:03:00.9]} 1... Nf6 {[%clk 0:02:53.5]} 2. c4 {[%clk 0:03:01.4]}
2... e6 {[%clk 0:02:53]} 3. g3 {[%clk 0:02:59.4]} 3... Bb4+ {[%clk 0:02:50.8]}
4. Nd2 {[%clk 0:02:57.7]} 4... c5 {[%clk 0:02:47.8]} 5. Nf3 {[%clk 0:02:56.7]}
5... cxd4 {[%clk 0:02:46.8]} 6. Nxd4 {[%clk 0:02:57.6]} 6... O-O {[%clk
0:02:47.2]} 7. Bg2 {[%clk 0:02:57.5]} 7... Nc6 {[%clk 0:02:47.7]} 8. Nc2 {[%clk
0:02:57.3]} 8... Be7 {[%clk 0:02:47.5]} 9. O-O {[%clk 0:02:57.4]} 9... d5 {[%clk
0:02:47.3]} 10. cxd5 {[%clk 0:02:57.3]} 10... Nxd5 {[%clk 0:02:47.9]} 11. Nb3
{[%clk 0:02:54.4]} 11... Bf6 {[%clk 0:02:31.6]} 12. Ne3 {[%clk 0:02:40.9]} 12...
Nxe3 {[%clk 0:02:29.8]} 13. Bxe3 {[%clk 0:02:41.8]} 13... Bxb2 {[%clk
0:02:27.8]} 14. Rb1 {[%clk 0:02:42.1]} 14... Bf6 {[%clk 0:02:28.4]} 15. Nc5
{[%clk 0:02:37.2]} 15... Qe7 {[%clk 0:02:24.1]} 16. Qa4 {[%clk 0:02:22.2]} 16...
Rd8 {[%clk 0:01:46.2]} 17. Rfd1 {[%clk 0:02:15.3]} 17... h6 {[%clk 0:01:31.5]}
18. h4 {[%clk 0:01:30.6]} 18... Be5 {[%clk 0:01:11]} 19. Bxc6 {[%clk 0:01:06.2]}
19... bxc6 {[%clk 0:01:09.2]} 20. Qxc6 {[%clk 0:01:01]} 20... Rxd1+ {[%clk
0:01:09.2]} 21. Rxd1 {[%clk 0:01:00.6]} 21... Rb8 {[%clk 0:01:10.1]} 22. Nd7
{[%clk 0:00:59.1]} 22... Bxd7 {[%clk 0:01:04.7]} 23. Rxd7 {[%clk 0:00:55.9]}
23... Rb1+ {[%clk 0:01:04.8]} 24. Kg2 {[%clk 0:00:54.9]} 24... Qf6 {[%clk
0:00:52.1]} 25. Rxa7 {[%clk 0:00:51.2]} 25... Rb2 {[%clk 0:00:50.5]} 26. Qe8+
{[%clk 0:00:49.5]} 26... Kh7 {[%clk 0:00:50.3]} 27. Qxf7 {[%clk 0:00:49.9]}
27... Qxf7 {[%clk 0:00:50.4]} 28. Rxf7 {[%clk 0:00:50.8]} 28... Rxe2 {[%clk
0:00:48.6]} 29. a4 {[%clk 0:00:49.1]} 29... Ra2 {[%clk 0:00:48.7]} 30. Ra7
{[%clk 0:00:48.9]} 30... Bc3 {[%clk 0:00:46.1]} 31. h5 {[%clk 0:00:48.8]} 31...
e5 {[%clk 0:00:43.1]} 32. Kf3 {[%clk 0:00:48.7]} 32... Be1 {[%clk 0:00:33.4]}
33. g4 {[%clk 0:00:48.8]} 33... Kg8 {[%clk 0:00:25.5]} 34. Bb6 {[%clk
0:00:41.8]} 34... Bc3 {[%clk 0:00:24.9]} 35. a5 {[%clk 0:00:41]} 35... Ra4
{[%clk 0:00:19.5]} 36. a6 {[%clk 0:00:38.3]} 36... Bd4 {[%clk 0:00:18.3]} 37.
Bxd4 {[%clk 0:00:35]} 37... exd4 {[%clk 0:00:19.2]} 38. Ke4 {[%clk 0:00:35]}
38... d3+ {[%clk 0:00:19.6]} 39. Kxd3 {[%clk 0:00:35.1]} 39... Rxg4 {[%clk
0:00:20.3]} 40. Rb7 {[%clk 0:00:34.1]} 40... Ra4 {[%clk 0:00:20.6]} 41. a7
{[%clk 0:00:34.6]} 41... Kh7 {[%clk 0:00:21.3]} 42. Kc3 {[%clk 0:00:25.8]} 42...
Kg8 {[%clk 0:00:15.9]} 43. Rb8+ {[%clk 0:00:25.8]} 1-0

[Event "Late-Titled-Tuesday-Blitz-June-25-2024"]
[Site "Chess.com"]
[Date "2024.06.25"]
[Round "3"]
[White "yaguigor"]
[Black "Alblooshi_Hamad"]
[Result "1-0"]
[WhiteElo "2551"]
[BlackElo "2290"]
[TimeControl "180+1"]
[EndTime "14:27:14 PDT"]
[Termination "yaguigor won by checkmate"]

1. d4 {[%clk 0:03:00.9]} 1... Nf6 {[%clk 0:02:59.8]} 2. c4 {[%clk 0:02:59.6]}
2... c5 {[%clk 0:03:00.3]} 3. d5 {[%clk 0:02:58.9]} 3... b5 {[%clk 0:03:00.8]}
4. cxb5 {[%clk 0:02:58.6]} 4... a6 {[%clk 0:03:01.4]} 5. bxa6 {[%clk 0:02:57.6]}
5... g6 {[%clk 0:03:02.1]} 6. Nc3 {[%clk 0:02:57.5]} 6... Bg7 {[%clk 0:03:02.5]}
7. e4 {[%clk 0:02:57.7]} 7... O-O {[%clk 0:03:02.7]} 8. a7 {[%clk 0:02:53.1]}
8... Rxa7 {[%clk 0:03:00.9]} 9. Nf3 {[%clk 0:02:53.7]} 9... e6 {[%clk
0:03:00.4]} 10. Be2 {[%clk 0:02:36.6]} 10... exd5 {[%clk 0:02:57.8]} 11. exd5
{[%clk 0:02:37.2]} 11... d6 {[%clk 0:02:57.9]} 12. O-O {[%clk 0:02:35.7]} 12...
Bb7 {[%clk 0:02:58.3]} 13. Bf4 {[%clk 0:02:27.4]} 13... Na6 {[%clk 0:02:50.5]}
14. Nb5 {[%clk 0:02:24.2]} 14... Ra8 {[%clk 0:02:44.9]} 15. Nxd6 {[%clk
0:02:22.2]} 15... Bxd5 {[%clk 0:02:40.4]} 16. Bc4 {[%clk 0:02:12.3]} 16... Bxc4
{[%clk 0:02:29.9]} 17. Nxc4 {[%clk 0:02:11.8]} 17... Qxd1 {[%clk 0:02:30.5]} 18.
Raxd1 {[%clk 0:02:05.6]} 18... Rfd8 {[%clk 0:02:05.3]} 19. a3 {[%clk 0:02:01.8]}
19... Nd5 {[%clk 0:01:57.2]} 20. Be5 {[%clk 0:01:59.1]} 20... Bxe5 {[%clk
0:01:52]} 21. Nfxe5 {[%clk 0:01:57.7]} 21... Nac7 {[%clk 0:01:48.4]} 22. g3
{[%clk 0:01:53.2]} 22... Ne6 {[%clk 0:01:26.3]} 23. Nc6 {[%clk 0:01:51.2]} 23...
Rd7 {[%clk 0:01:25.9]} 24. Rxd5 {[%clk 0:01:50.1]} 24... Rxd5 {[%clk 0:01:20.9]}
25. Ne7+ {[%clk 0:01:49.1]} 25... Kg7 {[%clk 0:01:15.9]} 26. Nxd5 {[%clk
0:01:49.5]} 26... Rb8 {[%clk 0:01:15.1]} 27. Re1 {[%clk 0:01:46.3]} 27... Nd4
{[%clk 0:01:15.2]} 28. Re7 {[%clk 0:01:43]} 28... Nf5 {[%clk 0:01:15.1]} 29. Rc7
{[%clk 0:01:40.8]} 29... Rd8 {[%clk 0:01:15.1]} 30. Rxc5 {[%clk 0:01:40]} 30...
Nd4 {[%clk 0:01:10.9]} 31. Nce3 {[%clk 0:01:33.7]} 31... Rb8 {[%clk 0:01:03.2]}
32. b4 {[%clk 0:01:32.5]} 32... Ra8 {[%clk 0:01:03.2]} 33. Ra5 {[%clk
0:01:32.3]} 33... Rc8 {[%clk 0:01:01.5]} 34. a4 {[%clk 0:01:29.4]} 34... Nf3+
{[%clk 0:00:57.8]} 35. Kg2 {[%clk 0:01:27.8]} 35... Ne1+ {[%clk 0:00:58.3]} 36.
Kf1 {[%clk 0:01:26.4]} 36... Nd3 {[%clk 0:00:54.7]} 37. Ke2 {[%clk 0:01:25.1]}
37... Nc1+ {[%clk 0:00:54.1]} 38. Kf3 {[%clk 0:01:24.7]} 38... Nb3 {[%clk
0:00:53.7]} 39. Ra7 {[%clk 0:01:22.8]} 39... Nd4+ {[%clk 0:00:49.8]} 40. Kg2
{[%clk 0:01:21.8]} 40... Nc6 {[%clk 0:00:48]} 41. Rb7 {[%clk 0:01:18.5]} 41...
h6 {[%clk 0:00:46.7]} 42. b5 {[%clk 0:01:14.6]} 42... Ne5 {[%clk 0:00:44.9]} 43.
a5 {[%clk 0:01:11.9]} 43... Rc1 {[%clk 0:00:39]} 44. a6 {[%clk 0:01:11.7]} 44...
Ra1 {[%clk 0:00:38.8]} 45. a7 {[%clk 0:01:11.4]} 45... Ra2 {[%clk 0:00:38.9]}
46. Nc7 {[%clk 0:01:05]} 46... Nd3 {[%clk 0:00:38.1]} 47. Nd1 {[%clk 0:01:04]}
47... Rb2 {[%clk 0:00:31.6]} 48. Nxb2 {[%clk 0:01:01.8]} 48... Ne1+ {[%clk
0:00:26.2]} 49. Kh1 {[%clk 0:01:00.1]} 49... h5 {[%clk 0:00:25.2]} 50. h4 {[%clk
0:00:58.7]} 50... Nf3 {[%clk 0:00:23.5]} 51. a8=Q {[%clk 0:00:58.1]} 51... g5
{[%clk 0:00:24.4]} 52. Rb8 {[%clk 0:00:56.2]} 52... gxh4 {[%clk 0:00:24.3]} 53.
Qxf3 {[%clk 0:00:55.2]} 53... hxg3 {[%clk 0:00:23.9]} 54. Qxg3+ {[%clk
0:00:54.8]} 54... Kh7 {[%clk 0:00:23.7]} 55. Rg8 {[%clk 0:00:52.4]} 55... h4
{[%clk 0:00:23.4]} 56. Qg7# {[%clk 0:00:52.9]} 1-0

[Event "Late-Titled-Tuesday-Blitz-June-25-2024"]
[Site "Chess.com"]
[Date "2024.06.25"]
[Round "3"]
[White "KNVB"]
[Black "AryanTari"]
[Result "0-1"]
[WhiteElo "2701"]
[BlackElo "3019"]
[TimeControl "180+1"]
[EndTime "14:27:21 PDT"]
[Termination "AryanTari won by resignation"]

1. d4 {[%clk 0:02:48.6]} 1... d5 {[%clk 0:02:57.5]} 2. Bf4 {[%clk 0:02:44.3]}
2... c5 {[%clk 0:02:55.3]} 3. e3 {[%clk 0:02:43.7]} 3... cxd4 {[%clk 0:02:55.5]}
4. exd4 {[%clk 0:02:44.6]} 4... Nc6 {[%clk 0:02:55.9]} 5. c3 {[%clk 0:02:40.7]}
5... f6 {[%clk 0:02:56.1]} 6. Nf3 {[%clk 0:02:37]} 6... g5 {[%clk 0:02:55.6]} 7.
Bg3 {[%clk 0:02:31.7]} 7... Bf5 {[%clk 0:02:54.8]} 8. Bd3 {[%clk 0:02:29.3]}
8... Qd7 {[%clk 0:02:49.6]} 9. O-O {[%clk 0:02:27.2]} 9... h5 {[%clk 0:02:49.2]}
10. h3 {[%clk 0:02:25.5]} 10... Nh6 {[%clk 0:02:46.5]} 11. Re1 {[%clk
0:02:12.1]} 11... Bxd3 {[%clk 0:02:43.2]} 12. Qxd3 {[%clk 0:02:13]} 12... Nf5
{[%clk 0:02:43.6]} 13. c4 {[%clk 0:01:54.4]} 13... dxc4 {[%clk 0:02:17.2]} 14.
Qxc4 {[%clk 0:01:43.5]} 14... g4 {[%clk 0:02:13.2]} 15. hxg4 {[%clk 0:01:38.9]}
15... Nxg3 {[%clk 0:02:03.9]} 16. d5 {[%clk 0:00:45.9]} 16... Na5 {[%clk
0:01:59.3]} 17. Qd3 {[%clk 0:00:17.5]} 17... hxg4 {[%clk 0:01:55.9]} 18. Qg6+
{[%clk 0:00:16.6]} 18... Kd8 {[%clk 0:01:56]} 19. Nh2 {[%clk 0:00:17.1]} 19...
Nf5 {[%clk 0:01:50]} 20. Qxg4 {[%clk 0:00:07.3]} 20... Nd6 {[%clk 0:01:44]} 21.
Qb4 {[%clk 0:00:06.3]} 21... Nac4 {[%clk 0:01:42]} 22. Nd2 {[%clk 0:00:01.6]}
22... Ne5 {[%clk 0:01:39.9]} 23. Ne4 {[%clk 0:00:01]} 23... Nd3 {[%clk
0:01:36.9]} 24. Qa5+ {[%clk 0:00:01.1]} 24... b6 {[%clk 0:01:37]} 25. Qd2 {[%clk
0:00:01.4]} 25... Nxe1 {[%clk 0:01:36.4]} 26. Rxe1 {[%clk 0:00:02.3]} 26... Bh6
{[%clk 0:01:35.4]} 27. Qd3 {[%clk 0:00:02.3]} 27... Bf4 {[%clk 0:01:33.3]} 28.
Nf3 {[%clk 0:00:02.5]} 28... Nxe4 {[%clk 0:01:25.8]} 29. Qxe4 {[%clk 0:00:02.5]}
29... Be5 {[%clk 0:01:25.9]} 30. d6 {[%clk 0:00:01.7]} 30... Rc8 {[%clk
0:01:25.7]} 31. Nxe5 {[%clk 0:00:02.2]} 31... fxe5 {[%clk 0:01:22.7]} 32. Qxe5
{[%clk 0:00:01.3]} 32... Re8 {[%clk 0:01:19.7]} 33. Rd1 {[%clk 0:00:01.1]} 33...
exd6 {[%clk 0:01:15.2]} 34. Qf4 {[%clk 0:00:01.6]} 34... Kc7 {[%clk 0:01:13.8]}
35. Rc1+ {[%clk 0:00:01.5]} 35... Kb7 {[%clk 0:01:14]} 36. Rd1 {[%clk
0:00:02.4]} 36... d5 {[%clk 0:01:13.8]} 37. Qd4 {[%clk 0:00:01.7]} 37... Rcd8
{[%clk 0:01:12.6]} 38. a4 {[%clk 0:00:01.5]} 38... Re4 {[%clk 0:01:10.8]} 39.
Qd3 {[%clk 0:00:01.7]} 39... Rxa4 {[%clk 0:01:10.5]} 40. b3 {[%clk 0:00:02.1]}
40... Rb4 {[%clk 0:01:08.9]} 41. Ra1 {[%clk 0:00:02.2]} 41... a5 {[%clk
0:01:08.2]} 42. Re1 {[%clk 0:00:02.9]} 42... Re4 {[%clk 0:01:07.4]} 43. Rc1
{[%clk 0:00:01.9]} 43... Rc8 {[%clk 0:01:07.1]} 44. Rd1 {[%clk 0:00:02.1]} 44...
Qc6 {[%clk 0:01:07.1]} 45. g3 {[%clk 0:00:01.1]} 45... Rb4 {[%clk 0:01:06.8]}
46. Qh7+ {[%clk 0:00:01]} 46... Rc7 {[%clk 0:01:06.5]} 47. Qd3 {[%clk
0:00:01.9]} 47... Qb5 {[%clk 0:01:06.1]} 48. Qf3 {[%clk 0:00:01.8]} 48... Rxb3
{[%clk 0:01:05.9]} 49. Qf5 {[%clk 0:00:02.2]} 49... d4 {[%clk 0:01:00.6]} 50.
Qe4+ {[%clk 0:00:01.9]} 50... Qc6 {[%clk 0:01:00.2]} 51. Qxd4 {[%clk 0:00:01.6]}
51... Rh7 {[%clk 0:00:59.3]} 52. Qd5 {[%clk 0:00:01.1]} 52... Qxd5 {[%clk
0:00:58.4]} 53. Rxd5 {[%clk 0:00:02]} 53... a4 {[%clk 0:00:58.9]} 0-1

[Event "Late-Titled-Tuesday-Blitz-June-25-2024"]
[Site "Chess.com"]
[Date "2024.06.25"]
[Round "3"]
[White "Jahonas"]
[Black "DucksParadise"]
[Result "1-0"]
[WhiteElo "2444"]
[BlackElo "2604"]
[TimeControl "180+1"]
[EndTime "14:27:23 PDT"]
[Termination "Jahonas won by checkmate"]

1. d4 {[%clk 0:03:00.9]} 1... f5 {[%clk 0:02:58.6]} 2. c4 {[%clk 0:02:59.4]}
2... Nf6 {[%clk 0:02:57.5]} 3. Nc3 {[%clk 0:02:59.3]} 3... d6 {[%clk 0:02:56.8]}
4. Nf3 {[%clk 0:02:59.2]} 4... g6 {[%clk 0:02:55.7]} 5. Bg5 {[%clk 0:02:58.5]}
5... Bg7 {[%clk 0:02:55.7]} 6. Qc2 {[%clk 0:02:52.6]} 6... O-O {[%clk 0:02:54]}
7. e3 {[%clk 0:02:49.2]} 7... c6 {[%clk 0:02:52.4]} 8. Bd3 {[%clk 0:02:48]} 8...
Na6 {[%clk 0:02:51.5]} 9. a3 {[%clk 0:02:47.1]} 9... Nc7 {[%clk 0:02:51]} 10.
O-O {[%clk 0:02:44.5]} 10... Qe8 {[%clk 0:02:51]} 11. e4 {[%clk 0:02:41]} 11...
fxe4 {[%clk 0:02:37.2]} 12. Nxe4 {[%clk 0:02:40.5]} 12... Nxe4 {[%clk
0:02:35.2]} 13. Bxe4 {[%clk 0:02:39.3]} 13... Bg4 {[%clk 0:02:29.5]} 14. Be3
{[%clk 0:02:07]} 14... e5 {[%clk 0:02:12.5]} 15. d5 {[%clk 0:01:49.4]} 15... c5
{[%clk 0:02:02]} 16. Ng5 {[%clk 0:01:42.6]} 16... Bf5 {[%clk 0:01:55.7]} 17.
Rae1 {[%clk 0:01:26.1]} 17... h6 {[%clk 0:01:47.7]} 18. Ne6 {[%clk 0:01:23.1]}
18... Nxe6 {[%clk 0:01:47.2]} 19. dxe6 {[%clk 0:01:22]} 19... Qxe6 {[%clk
0:01:46.6]} 20. Rd1 {[%clk 0:01:11.8]} 20... Kh7 {[%clk 0:01:42.5]} 21. Rd5
{[%clk 0:01:08.5]} 21... Rad8 {[%clk 0:01:29.6]} 22. Rfd1 {[%clk 0:01:07.1]}
22... Bf6 {[%clk 0:01:12.7]} 23. Qd3 {[%clk 0:00:57]} 23... Be7 {[%clk
0:01:09.7]} 24. f3 {[%clk 0:00:55.1]} 24... a6 {[%clk 0:00:59.6]} 25. b4 {[%clk
0:00:53.4]} 25... b6 {[%clk 0:00:56]} 26. Kh1 {[%clk 0:00:51.4]} 26... Qf7
{[%clk 0:00:49.5]} 27. h3 {[%clk 0:00:35.7]} 27... Be6 {[%clk 0:00:48.8]} 28.
Qc2 {[%clk 0:00:18.6]} 28... Bxd5 {[%clk 0:00:47.6]} 29. Rxd5 {[%clk 0:00:16.9]}
29... Bg5 {[%clk 0:00:41.5]} 30. Bg1 {[%clk 0:00:16.6]} 30... Kg7 {[%clk
0:00:34.8]} 31. Qb3 {[%clk 0:00:16.4]} 31... b5 {[%clk 0:00:21.1]} 32. bxc5
{[%clk 0:00:14.6]} 32... dxc5 {[%clk 0:00:21]} 33. Bxc5 {[%clk 0:00:14.3]} 33...
bxc4 {[%clk 0:00:19.6]} 34. Bxf8+ {[%clk 0:00:11.7]} 34... Kxf8 {[%clk
0:00:14.6]} 35. Qxc4 {[%clk 0:00:11]} 35... Rxd5 {[%clk 0:00:13.6]} 36. Bxd5
{[%clk 0:00:10.3]} 36... Qf6 {[%clk 0:00:11.9]} 37. Qc8+ {[%clk 0:00:09.9]}
37... Kg7 {[%clk 0:00:11.6]} 38. Qg8# {[%clk 0:00:09.6]} 1-0

[Event "Late-Titled-Tuesday-Blitz-June-25-2024"]
[Site "Chess.com"]
[Date "2024.06.25"]
[Round "3"]
[White "Raja3401"]
[Black "KatakuriDono"]
[Result "1-0"]
[WhiteElo "2771"]
[BlackElo "2322"]
[TimeControl "180+1"]
[EndTime "14:27:23 PDT"]
[Termination "Raja3401 won by resignation"]

1. e4 {[%clk 0:02:21.5]} 1... c5 {[%clk 0:02:57.5]} 2. Nf3 {[%clk 0:02:21.7]}
2... Nc6 {[%clk 0:02:56]} 3. Bb5 {[%clk 0:02:18.6]} 3... e6 {[%clk 0:02:53.1]}
4. Bxc6 {[%clk 0:02:17.2]} 4... bxc6 {[%clk 0:02:52.8]} 5. b3 {[%clk 0:02:17.5]}
5... Ne7 {[%clk 0:02:47.8]} 6. d3 {[%clk 0:02:07.6]} 6... Ng6 {[%clk 0:02:44.3]}
7. h4 {[%clk 0:02:07.4]} 7... h5 {[%clk 0:02:41.1]} 8. e5 {[%clk 0:02:06.2]}
8... c4 {[%clk 0:02:34.6]} 9. dxc4 {[%clk 0:01:36.8]} 9... Nxe5 {[%clk
0:02:33.4]} 10. Bb2 {[%clk 0:01:35.6]} 10... Ng4 {[%clk 0:02:19.9]} 11. Nc3
{[%clk 0:01:22.5]} 11... Be7 {[%clk 0:02:15.4]} 12. Qe2 {[%clk 0:01:17.5]} 12...
Bf6 {[%clk 0:02:07.1]} 13. O-O-O {[%clk 0:01:16.3]} 13... Qa5 {[%clk 0:02:04.7]}
14. Ne4 {[%clk 0:01:10.5]} 14... Qxa2 {[%clk 0:01:42.6]} 15. Nxf6+ {[%clk
0:01:09.2]} 15... Nxf6 {[%clk 0:01:42]} 16. Qe5 {[%clk 0:01:05.1]} 16... a5
{[%clk 0:01:36.7]} 17. Kd2 {[%clk 0:00:53.1]} 17... Ne4+ {[%clk 0:01:17.2]} 18.
Ke3 {[%clk 0:00:45.7]} 18... f6 {[%clk 0:01:14.9]} 19. Qxe4 {[%clk 0:00:41.4]}
19... Qxb2 {[%clk 0:01:12.7]} 20. Qg6+ {[%clk 0:00:38]} 20... Kf8 {[%clk
0:01:11.2]} 21. Nd4 {[%clk 0:00:34.6]} 21... a4 {[%clk 0:01:05.3]} 22. Nxe6+
{[%clk 0:00:29.4]} 22... Ke7 {[%clk 0:00:54.5]} 23. Qxg7+ {[%clk 0:00:27.4]}
23... Kxe6 {[%clk 0:00:52.1]} 24. Qxh8 {[%clk 0:00:27.6]} 24... Qe5+ {[%clk
0:00:47.8]} 25. Kf3 {[%clk 0:00:20.7]} 25... Qf5+ {[%clk 0:00:44.2]} 26. Kg3
{[%clk 0:00:20.9]} 26... Qg4+ {[%clk 0:00:33.2]} 27. Kh2 {[%clk 0:00:21.2]}
27... d5 {[%clk 0:00:29.3]} 28. Rhe1+ {[%clk 0:00:18.6]} 28... Kd6 {[%clk
0:00:25.7]} 29. Qd8+ {[%clk 0:00:14.1]} 29... Qd7 {[%clk 0:00:22.9]} 30. Qxd7+
{[%clk 0:00:13.6]} 30... Bxd7 {[%clk 0:00:23.2]} 31. cxd5 {[%clk 0:00:14.3]}
31... cxd5 {[%clk 0:00:22.2]} 32. Ra1 {[%clk 0:00:13.8]} 32... a3 {[%clk
0:00:21.2]} 33. Ra2 {[%clk 0:00:13.8]} 33... Kc5 {[%clk 0:00:20.2]} 34. c3
{[%clk 0:00:12.3]} 34... d4 {[%clk 0:00:20.3]} 35. cxd4+ {[%clk 0:00:11.9]}
35... Kd5 {[%clk 0:00:21]} 36. Rea1 {[%clk 0:00:11.9]} 36... Bb5 {[%clk
0:00:19.1]} 37. Rxa3 {[%clk 0:00:12.3]} 37... Rxa3 {[%clk 0:00:19.7]} 38. Rxa3
{[%clk 0:00:13.2]} 38... Kxd4 {[%clk 0:00:20.3]} 39. Ra5 {[%clk 0:00:13.5]}
39... Be2 {[%clk 0:00:18.5]} 40. Rf5 {[%clk 0:00:13.3]} 40... Kc3 {[%clk
0:00:17.2]} 41. Rxf6 {[%clk 0:00:13.8]} 41... Kxb3 {[%clk 0:00:17.9]} 42. f3
{[%clk 0:00:14.4]} 42... Kc4 {[%clk 0:00:17.8]} 43. Kg3 {[%clk 0:00:15.3]} 43...
Kd5 {[%clk 0:00:17.8]} 44. Rf5+ {[%clk 0:00:15.9]} 44... Ke6 {[%clk 0:00:18.1]}
45. Rxh5 {[%clk 0:00:16.8]} 1-0

[Event "Late-Titled-Tuesday-Blitz-June-25-2024"]
[Site "Chess.com"]
[Date "2024.06.25"]
[Round "3"]
[White "GlavkonVVS"]
[Black "ALRS-SPS"]
[Result "1-0"]
[WhiteElo "2640"]
[BlackElo "2440"]
[TimeControl "180+1"]
[EndTime "14:27:24 PDT"]
[Termination "GlavkonVVS won by checkmate"]

1. c4 {[%clk 0:03:00.9]} 1... e6 {[%clk 0:02:59.4]} 2. Nc3 {[%clk 0:03:00.8]}
2... d5 {[%clk 0:02:59.4]} 3. d4 {[%clk 0:03:00.8]} 3... Nf6 {[%clk 0:02:59.5]}
4. Nf3 {[%clk 0:03:00.8]} 4... Be7 {[%clk 0:02:59.7]} 5. Bg5 {[%clk 0:03:00.8]}
5... O-O {[%clk 0:02:59.3]} 6. e3 {[%clk 0:03:00.9]} 6... c6 {[%clk 0:02:57.8]}
7. Qc2 {[%clk 0:02:59.5]} 7... Nbd7 {[%clk 0:02:58]} 8. cxd5 {[%clk 0:02:57.1]}
8... exd5 {[%clk 0:02:55.6]} 9. Bd3 {[%clk 0:02:57]} 9... Re8 {[%clk 0:02:55.5]}
10. O-O {[%clk 0:02:56.6]} 10... Nf8 {[%clk 0:02:55.8]} 11. Bxf6 {[%clk
0:02:53.4]} 11... Bxf6 {[%clk 0:02:55.7]} 12. b4 {[%clk 0:02:53.5]} 12... a6
{[%clk 0:02:45.6]} 13. a4 {[%clk 0:02:52.6]} 13... g6 {[%clk 0:02:42.3]} 14. b5
{[%clk 0:02:52]} 14... axb5 {[%clk 0:02:42.9]} 15. axb5 {[%clk 0:02:51.7]} 15...
Bd7 {[%clk 0:02:41.9]} 16. bxc6 {[%clk 0:02:47.9]} 16... bxc6 {[%clk 0:02:35]}
17. Na4 {[%clk 0:02:45.2]} 17... Ne6 {[%clk 0:02:31.7]} 18. Nc5 {[%clk
0:02:29.6]} 18... Nxc5 {[%clk 0:02:30]} 19. Qxc5 {[%clk 0:02:29.7]} 19... Qe7
{[%clk 0:02:25.8]} 20. Qxe7 {[%clk 0:02:25.6]} 20... Bxe7 {[%clk 0:02:24.7]} 21.
Ne5 {[%clk 0:02:25.3]} 21... Rxa1 {[%clk 0:01:58]} 22. Rxa1 {[%clk 0:02:24]}
22... Be6 {[%clk 0:01:41.4]} 23. Nxc6 {[%clk 0:02:23.2]} 23... Bd6 {[%clk
0:01:38.5]} 24. Ne5 {[%clk 0:02:14.2]} 24... Rc8 {[%clk 0:01:35.7]} 25. f4
{[%clk 0:01:58.9]} 25... Rc3 {[%clk 0:01:32.9]} 26. Rd1 {[%clk 0:01:58.1]} 26...
Kg7 {[%clk 0:01:22.5]} 27. Kf2 {[%clk 0:01:55.6]} 27... Ra3 {[%clk 0:01:21.7]}
28. Rd2 {[%clk 0:01:48.9]} 28... h5 {[%clk 0:01:21.4]} 29. Be2 {[%clk
0:01:43.4]} 29... Ra1 {[%clk 0:01:15.7]} 30. Bf3 {[%clk 0:01:37.2]} 30... Rb1
{[%clk 0:01:10.9]} 31. Nd3 {[%clk 0:01:33.1]} 31... Rh1 {[%clk 0:01:05.5]} 32.
h3 {[%clk 0:01:33]} 32... Rb1 {[%clk 0:01:03.8]} 33. g4 {[%clk 0:01:31.8]} 33...
hxg4 {[%clk 0:01:03.6]} 34. hxg4 {[%clk 0:01:32]} 34... Kf6 {[%clk 0:00:45.3]}
35. Rc2 {[%clk 0:01:29.4]} 35... Rb3 {[%clk 0:00:31.7]} 36. Be2 {[%clk
0:01:28.8]} 36... Bxg4 {[%clk 0:00:24.7]} 37. Bxg4 {[%clk 0:01:25.3]} 37... Rxd3
{[%clk 0:00:24.3]} 38. Bf3 {[%clk 0:01:24.9]} 38... Ke6 {[%clk 0:00:23]} 39. Rc6
{[%clk 0:01:21.4]} 39... Ra3 {[%clk 0:00:21.7]} 40. Rb6 {[%clk 0:01:19]} 40...
Ra2+ {[%clk 0:00:21.9]} 41. Kg3 {[%clk 0:01:18.8]} 41... Ra5 {[%clk 0:00:21.8]}
42. Bg4+ {[%clk 0:01:15.7]} 42... Ke7 {[%clk 0:00:20.9]} 43. Rb7+ {[%clk
0:01:13.7]} 43... Kf6 {[%clk 0:00:19.9]} 44. Rd7 {[%clk 0:01:13.7]} 44... Ra6
{[%clk 0:00:20.1]} 45. Bf3 {[%clk 0:01:12.9]} 45... Ke6 {[%clk 0:00:20.1]} 46.
Rb7 {[%clk 0:01:13]} 46... Ra5 {[%clk 0:00:19.3]} 47. Bg4+ {[%clk 0:01:11.3]}
47... Kf6 {[%clk 0:00:18.5]} 48. Rb6 {[%clk 0:01:11.1]} 48... Ke7 {[%clk
0:00:18.5]} 49. Kf2 {[%clk 0:01:10.6]} 49... Ra2+ {[%clk 0:00:18]} 50. Be2
{[%clk 0:01:09.9]} 50... Ra5 {[%clk 0:00:16.5]} 51. Bb5 {[%clk 0:01:08.3]} 51...
Ke6 {[%clk 0:00:15.6]} 52. Rb7 {[%clk 0:01:06.3]} 52... Ra2+ {[%clk 0:00:15.2]}
53. Kf3 {[%clk 0:01:05.9]} 53... Ra5 {[%clk 0:00:15.1]} 54. Be8 {[%clk
0:01:05.6]} 54... Be7 {[%clk 0:00:12.4]} 55. Bd7+ {[%clk 0:01:05.3]} 55... Kd6
{[%clk 0:00:10.9]} 56. Be8 {[%clk 0:01:02.8]} 56... Ke6 {[%clk 0:00:10.6]} 57.
Rb6+ {[%clk 0:01:02.9]} 57... Kf5 {[%clk 0:00:08.1]} 58. Bxf7 {[%clk 0:01:02.5]}
58... g5 {[%clk 0:00:06.8]} 59. Bg6# {[%clk 0:01:02.4]} 1-0